Cogmind - Beta 15 @@@ ROGUE MODE // 2025.05.26 @ 23:00:03 Player: Lunace Result: Self-destructed Performance ------------- Evolutions (2) 1000 Regions Visited (5) 1000 Robots Destroyed (15) 75 Value Destroyed (429) 429 Prototype IDs (23) 460 Alien Tech Used (0) 0 Bonus (300) 300 TOTAL SCORE: 3264 Bonus ------- Aligned with FarCom 300 Cogmind --------- Core Integrity 341/550 Matter 186/300 Energy 120/250 System Corruption 0% Temperature Warm (188) Movement Treading (240) Ox1 Location -8/Materials Parts ------- > --- POWER (1) -------- Ion Engine > --- PROPULSION (4) --- Light Treads Light Treads > --- UTILITY (4) ------ Coolant Injector High-capacity Storage Unit > --- WEAPON (2) ------- Particle Gun Particle Gun > --- INVENTORY (20) --- Ion Engine Compact Wheel Coolant Injector Coolant Injector Coolant Injector Superbattery (1500) High-capacity Matter Pod (200) Experimental Sensor Array Advanced Targeting Computer System Restoration Module System Restoration Module System Restoration Module System Restoration Module Beam Rifle Grenade Launcher Mini Grenade Launcher Peak State ------------ > --- POWER ------------ Improved Ion Engine > --- PROPULSION ------- Light Treads Light Treads Light Treads Light Treads > --- UTILITY ---------- Coolant Injector High-capacity Storage Unit Light Armor Plating Reflective Plating > --- WEAPON ----------- Particle Gun Particle Gun > --- INVENTORY -------- Ion Engine Ion Engine Light Treads Light Treads Compact Wheel Coolant Injector Coolant Injector Coolant Injector Superbattery High-capacity Matter Pod Experimental Sensor Array Advanced Targeting Computer Light Armor Plating System Restoration Module System Restoration Module System Restoration Module System Restoration Module Beam Rifle Grenade Launcher Mini Grenade Launcher [Rating: 25] Favorites ----------- Power Improved Ion Engine Engine Improved Ion Engine Propulsion Light Treads Treads Light Treads Utility Light Armor Plating Device Seismic Detector Storage Large Storage Unit Protection Light Armor Plating Weapon Assault Rifle Energy Gun Particle Gun Ballistic Gun Assault Rifle Ballistic Cannon Light Cannon Launcher Grenade Launcher Build | -11 -10 -10 -10 -9 -8 ------- Run | Yrd Mat Min Exi Min Mat Slots Evolved 4 | . . . . . 4 Power . | . . . . . . Propulsion 2 | . . . . . 2 Utility 2 | . . . . . 2 Weapon . | . . . . . . Parts Attached 25 | 7 3 2 . . 13 Power 3 | 1 . 1 . . 1 Engine 3 | 1 . 1 . . 1 Core . | . . . . . . Reactor . | . . . . . . Propulsion 6 | 2 . . . . 4 Treads 6 | 2 . . . . 4 Leg . | . . . . . . Wheel . | . . . . . . Hover . | . . . . . . Flight . | . . . . . . Utility 9 | 2 2 1 . . 4 Device 2 | 1 . . . . 1 Storage 4 | 1 2 . . . 1 Processor . | . . . . . . Hackware . | . . . . . . Protection 3 | . . 1 . . 2 Artifact . | . . . . . . Weapon 7 | 2 1 . . . 4 Energy Gun 3 | . 1 . . . 2 Energy Cannon . | . . . . . . Ballistic Gun 2 | 2 . . . . . Ballistic Cannon 1 | . . . . . 1 Launcher 1 | . . . . . 1 Special Weapon . | . . . . . . Impact Weapon . | . . . . . . Slashing Weapon . | . . . . . . Piercing Weapon . | . . . . . . Special Melee Weapon . | . . . . . . Unidentified Prototypes . | . . . . . . Parts Lost 7 | . . . . . 7 Power 1 | . . . . . 1 Propulsion 3 | . . . . . 3 Utility 3 | . . . . . 3 Weapon . | . . . . . . Highest Loss Streak 7 | . . . . . 7 To Critical Strikes . | . . . . . . Average Backups 11 | 1 6 11 14 14 15 Power 1 | . 1 2 2 2 1 Propulsion 4 | 1 3 6 6 6 3 Utility 3 | . . 2 3 4 7 Weapon 1 | . . 1 2 2 2 Tool/Special . | . . . . . . Unused Backups 17 | 1 2 . 1 . 13 Power 2 | . 1 . . . 1 Propulsion 3 | 1 . . . . 2 Utility 10 | . 1 . . . 9 Weapon 2 | . . . 1 . 1 Tool/Special . | . . . . . . Average Slot Usage (%) 98 | . 100 100 100 100 91 Engine 13 | . 14 14 14 14 9 Treads 29 | . 28 28 28 28 34 Device 2 | . 11 . . . 2 Storage 13 | . 16 14 14 14 9 Protection 11 | . . 13 14 14 18 Energy Gun 10 | . 1 14 14 14 10 Ballistic Gun 14 | . 26 14 14 14 4 Peak Build Rating 25 | 7 8 11 12 12 25 Average Rating 11 | 5 7 10 11 12 18 On Entrance 8 | . 7 8 11 12 12 Naked Turns . | . . . . . . Heaviest Build 63 | 14 34 35 35 35 63 Greatest Support 80 | 40 40 40 40 40 80 Greatest Overweight (x) 3 | 3 . . . . . Average Overweight (x) . | . . . . . . Largest Inventory Capacity 20 | 8 15 15 15 15 20 Average Capacity 15 | 7 14 15 15 15 19 Most Carried 20 | 4 10 14 15 14 20 Average Carried 11 | 1 6 11 14 14 16 Final Capacity 20 | 8 15 15 15 15 20 Final Carried 16 | 3 9 14 14 14 16 Class Distribution -------------------- 94% | Mutant 5% | Scavenger-Mutant Dominant Class ---------------- Mutant | -10/Materials Mutant | -10/Mines Mutant | -10/Exiles Mutant | -9/Mines Mutant | -8/Materials Resources | -11 -10 -10 -10 -9 -8 ----------- Run | Yrd Mat Min Exi Min Mat Matter Collected 689 | 286 144 182 . . 77 Remotely . | . . . . . . Salvage Created 499 | 105 161 . . . 233 Parts 29 | 7 7 . . . 15 Haulers Intercepted 1 | . 1 . . . . Recyclers Shooed . | . . . . . . Parts Field Recycled . | . . . . . . Retrieved Matter . | . . . . . . Parts Self-Destructed . | . . . . . . Prevented . | . . . . . . Kills | -11 -10 -10 -10 -9 -8 ------- Run | Yrd Mat Min Exi Min Mat Combat Hostiles Destroyed 11 | . 2 . . . 9 Guns 7 | . 2 . . . 5 AOE 4 | . . . . . 4 Classes Destroyed 8 | 2 3 . . . 3 Tunneler 1 | 1 . . . . . Hauler 1 | . 1 . . . . Recycler 1 | 1 . . . . . Watcher 1 | . 1 . . . . Swarmer 4 | . . . . . 4 Grunt 5 | . 2 . . . 3 Sentry 1 | . . . . . 1 Heavy 1 | . . . . . 1 Best Kill Streak 4 | 2 2 . . . 4 Combat Bots Only 4 | . 2 . . . 4 Max Kills in Single Turn 3 | 1 1 . . . 3 Gunslinging . | . . . . . . Exploded 3 | . . . . . 3 Melee . | . . . . . . Uniques/NPCs Destroyed . | . . . . . . Combat | -11 -10 -10 -10 -9 -8 -------- Run | Yrd Mat Min Exi Min Mat Hostile Shots Fired 81 | . 7 . . . 74 Missed 13 | . 2 . . . 11 Hits 68 | . 5 . . . 63 Projectile 68 | . 5 . . . 63 Critical Strikes 3 | . . . . . 3 Damage Taken 1307 | . 69 . . . 1238 Core 227 | . 18 . . . 209 Absorbed by Shields . | . . . . . . Ignored by Resistances 92 | . . . . . 92 Core Remaining (%) 96 | 100 . . . 92 . Volleys Fired 49 | 4 19 . . . 26 Largest 2 | 2 2 . . . 2 Hottest 130 | 40 40 . . . 130 Shots Fired 94 | 8 38 . . . 48 Gun 88 | 8 38 . . . 42 Cannon 3 | . . . . . 3 Launcher 3 | . . . . . 3 Special . | . . . . . . Kinetic 57 | 8 38 . . . 11 Thermal 34 | . . . . . 34 Explosive 3 | . . . . . 3 Electromagnetic . | . . . . . . Robot Hit Streak 8 | 5 6 . . . 8 Robot Miss Streak 4 | 1 2 . . . 4 Penetration Max . | . . . . . . Secondary Targets 1 | . . . . . 1 Max Gunslinging Chain 1 | . . . . . 1 Shots Hit Robots 60 | 6 24 . . . 30 Core Hits 27 | 3 8 . . . 16 Critical Kills . | . . . . . . Critical Parts Destroyed . | . . . . . . Critical Strikes 1 | . . . . . 1 Burn 1 | . . . . . 1 Melee Attacks . | . . . . . . Impact . | . . . . . . Slashing . | . . . . . . Piercing . | . . . . . . Sneak Attacks . | . . . . . . Combat Hostiles . | . . . . . . Follow-up Attacks . | . . . . . . Damage Inflicted 1009 | 66 237 . . . 706 Guns 754 | 66 237 . . . 451 Cannons 30 | . . . . . 30 Explosions 225 | . . . . . 225 Melee . | . . . . . . Ramming . | . . . . . . Kinetic 369 | 66 237 . . . 66 Thermal 415 | . . . . . 415 Explosive 225 | . . . . . 225 Electromagnetic . | . . . . . . Impact . | . . . . . . Slashing . | . . . . . . Piercing . | . . . . . . Highest Corruption . | . . . . . . Average Corruption . | . . . . . . Corruption Purged . | . . . . . . Corruption Blocked . | . . . . . . Overload Shots . | . . . . . . Overflow Damage 3 | . . . . . 3 Projectiles . | . . . . . . Explosions 3 | . . . . . 3 Melee . | . . . . . . Knockbacks . | . . . . . . Impact . | . . . . . . Kinetic . | . . . . . . Secondary . | . . . . . . Self-Inflicted Damage 56 | . . . . . 56 Shots 2 | . . . . . 2 Rammed . | . . . . . . Targets Rammed . | . . . . . . Kicked . | . . . . . . Crushed . | . . . . . . Highest Temperature 360 | . 9 . . . 360 Average Temperature 122 | . 7 . . . 135 Received Heat Transfer 558 | . 36 . . . 522 Siege Activations . | . . . . . . Martial Activations . | . . . . . . Shielding Activations . | . . . . . . Robots Disrupted . | . . . . . . Combat Hostiles . | . . . . . . Robots Corrupted . | . . . . . . Combat Hostiles . | . . . . . . Parts Fried . | . . . . . . Impact Corruptions . | . . . . . . Robots Melted . | . . . . . . Combat Hostiles . | . . . . . . Parts Melted 1 | . . . . . 1 Heat Transferred 1073 | . . . . . 1073 Parts Sabotaged . | . . . . . . Parts Stolen . | . . . . . . Parts Stripped . | . . . . . . Power Chain Reactions . | . . . . . . Alert | -11 -10 -10 -10 -9 -8 ------- Run | Yrd Mat Min Exi Min Mat Maximum Alert Level . | . . . . . . Low Security (%) 100 | 100 100 100 . 100 100 Level 1 . | . . . . . . Level 2 . | . . . . . . Level 3 . | . . . . . . Level 4 . | . . . . . . Level 5 . | . . . . . . High Security . | . . . . . . Max Security . | . . . . . . Peak Influence 150 | 5 50 9 . . 150 Initial 9 | . . 9 . . . Average 7 | . 5 . . . 30 Influence Increases 419 | 10 64 . . . 345 Destroy 0b10 Robot/C 220 | . 40 . . . 180 Destroy 0b10 Robot/NC 35 | 10 10 . . . 15 Destroy Leader 58 | . 14 . . . 44 Allied During Kill 21 | . . . . . 21 Successful Hack 14 | . . . . . 14 Disable Machine 45 | . . . . . 45 Destroy Structure 26 | . . . . . 26 Influence Decreases 339 | 10 38 26 . . 265 Entered New Map 17 | . . 17 . . . Time Decay 192 | 10 38 9 . . 135 Lost Part 70 | . . . . . 70 Lost Ally 60 | . . . . . 60 Squads Dispatched 5 | . . . . . 5 Investigation 1 | . . . . . 1 Extermination . | . . . . . . Reinforcement 2 | . . . . . 2 Assault 2 | . . . . . 2 Garrison . | . . . . . . Intercept . | . . . . . . Searches Triggered . | . . . . . . Construction Impeded . | . . . . . . Haulers Reinforced . | . . . . . . Active Scanning Responses . | . . . . . . Cargo Convoy Interrupts . | . . . . . . Stealth | -11 -10 -10 -10 -9 -8 --------- Run | Yrd Mat Min Exi Min Mat Distress Signals 1 | . 1 . . . . Communications Jammed . | . . . . . . Distress Signals . | . . . . . . Times Spotted 22 | . 7 . . . 15 Peak Tracking Total 5 | . 3 . . . 5 Tactical Retreats . | . . . . . . Traps | -11 -10 -10 -10 -9 -8 ------- Run | Yrd Mat Min Exi Min Mat Traps Triggered . | . . . . . . Indirectly . | . . . . . . Trap Hack Attempts . | . . . . . . Triggered . | . . . . . . Disarmed . | . . . . . . Reprogrammed . | . . . . . . Reused . | . . . . . . Traps Extracted . | . . . . . . Installed . | . . . . . . Triggered . | . . . . . . Machines | -11 -10 -10 -10 -9 -8 ---------- Run | Yrd Mat Min Exi Min Mat Machines Disabled 3 | . . . . . 3 Max in Single Turn 2 | . . . . . 2 Garrison Access 1 | . . . . . 1 Machines Repaired . | . . . . . . Machines Dismantled . | . . . . . . Machines Sabotaged . | . . . . . . Overloaded Fab Kills . | . . . . . . Hacking | -11 -10 -10 -10 -9 -8 --------- Run | Yrd Mat Min Exi Min Mat Machines Accessed 6 | . 1 . 2 . 3 Terminals 4 | . 1 . . . 3 Fabricators . | . . . . . . Repair Stations . | . . . . . . Recycling Units . | . . . . . . Scanalyzers . | . . . . . . Garrison Access . | . . . . . . Total Hacks 10 | . 2 . 2 . 6 Successful 5 | . . . 2 . 3 Failed 5 | . 2 . . . 3 Catastrophic 1 | . . . . . 1 Database Lockouts . | . . . . . . Manual 8 | . 2 . 1 . 5 Terminals 8 | . 2 . . . 6 Fabricators . | . . . . . . Repair Stations . | . . . . . . Recycling Units . | . . . . . . Scanalyzers . | . . . . . . Garrison Access . | . . . . . . Terminal Hacks 3 | . . . 2 . 1 Record 1 | . . . 1 . . Zone Layout 1 | . . . . . 1 Proto ID Catalog 1 | . . . 1 . . Fabricator Hacks . | . . . . . . Repair Station Hacks . | . . . . . . Recycling Unit Hacks . | . . . . . . Scanalyzer . | . . . . . . Garrison Access Hacks . | . . . . . . Unauthorized Hacks 2 | . . . . . 2 Terminals 2 | . . . . . 2 Track 1 | . . . . . 1 Botnet 1 | . . . . . 1 Fabricators . | . . . . . . Repair Stations . | . . . . . . Recycling Units . | . . . . . . Scanalyzers . | . . . . . . Garrison Access . | . . . . . . Data Cores Recovered 1 | . . . . . 1 Used 1 | . . . . . 1 Hacking Detections 4 | . 1 . . . 3 Full Trace Events 1 | . . . . . 1 Feedback Events . | . . . . . . Feedback Blocked . | . . . . . . Robot Schematics Acquired . | . . . . . . Robots Built . | . . . . . . Authchips . | . . . . . . Time . | . . . . . . Total Robot Build Rating . | . . . . . . Part Schematics Acquired . | . . . . . . Parts Built . | . . . . . . Authchips . | . . . . . . Time . | . . . . . . Total Part Build Rating . | . . . . . . Parts Repaired . | . . . . . . Time . | . . . . . . Parts Recycled . | . . . . . . Recycled Matter . | . . . . . . Retrieved Matter . | . . . . . . Retrieved Components . | . . . . . . Parts Scanalyzed . | . . . . . . Part Schematics Acquired . | . . . . . . Parts Damaged . | . . . . . . Bothacking | -11 -10 -10 -10 -9 -8 ------------ Run | Yrd Mat Min Exi Min Mat Used RIF Installer . | . . . . . . Robots Hacked . | . . . . . . Non-combat . | . . . . . . Combat . | . . . . . . Robot Hacks Applied . | . . . . . . Relay Couplers Released 2 | . . . . . 2 Machine Destruction 2 | . . . . . 2 Fabnet Peak Effective % . | . . . . . . Robots Rewired . | . . . . . . Allies Hacked . | . . . . . . Hacks Repelled . | . . . . . . Allies | -11 -10 -10 -10 -9 -8 -------- Run | Yrd Mat Min Exi Min Mat Total Allies 3 | . . 3 . . . Largest Group 3 | . . 3 3 3 3 Highest-Rated Group 40 | . . 40 40 40 40 Highest-Rated Ally 16 | . . 16 16 16 16 Total Orders 2 | . . . . . 2 STAY 1 | . . . . . 1 FOLLOW 1 | . . . . . 1 Ally Attacks 19 | . . . . . 19 Total Damage 184 | . . . . . 184 Kills 3 | . . . . . 3 Allies Corrupted . | . . . . . . Allies Melted . | . . . . . . Intel | -11 -10 -10 -10 -9 -8 ------- Run | Yrd Mat Min Exi Min Mat Active Infowar (turns) 406 | 32 374 . . . . Seismic 406 | 32 374 . . . . Robot Analysis Total . | . . . . . . Derelict Logs Recovered 1 | . . 1 . . . Drone Launches . | . . . . . . Drone Recoveries . | . . . . . . Exploration | -11 -10 -10 -10 -9 -8 ------------- Run | Yrd Mat Min Exi Min Mat Turns Passed 2279 | 98 459 804 434 116 368 Spaces Moved 1260 | 47 232 485 269 72 155 Core 5 | 5 . . . . . Treads 1255 | 42 232 485 269 72 155 Legs . | . . . . . . Wheels . | . . . . . . Hover . | . . . . . . Flight . | . . . . . . Fastest Speed 50 | 50 160 160 160 160 160 Average Speed 159 | 155 160 160 160 160 160 Slowest Speed 200 | 200 160 160 160 160 160 Overloaded Moves . | . . . . . . Propulsion Burnouts . | . . . . . . Robots Hopped . | . . . . . . Potential Cave-ins . | . . . . . . Cave-ins Triggered . | . . . . . . Exploration Rate (%) 43 | 5 42 96 69 34 17 Regions Visited 5 Branch Regions 3 Pre-discovered Areas 3 | . . 2 1 . . Known Exits Taken . | . . . . . . Unknown Exits Taken 5 | 1 1 1 1 1 . Scrap Searched 1 | . . 1 . . . Spaces Dug 8 | . . . . . 8 Terrain Destroyed 25 | . . . . . 25 Melee . | . . . . . . Projectile . | . . . . . . AOE 25 | . . . . . 25 Terrain Rammed . | . . . . . . Walls Destroyed . | . . . . . . Machines Disabled . | . . . . . . Actions | -11 -10 -10 -10 -9 -8 --------- Run | Yrd Mat Min Exi Min Mat Total 1433 | 62 286 513 274 73 225 Wait 53 | . 21 19 . 2 11 Move 1255 | 46 231 484 268 71 155 Hop . | . . . . . . Pick Up 31 | 4 8 5 3 . 11 Fast Attach 13 | 7 1 1 . . 4 Attach 7 | . . . . . 7 Detach 1 | . . . . . 1 Swap 8 | . 2 1 . . 5 Drop 15 | 1 4 2 3 . 5 Fire 49 | 4 19 . . . 26 Melee . | . . . . . . Ram . | . . . . . . Kick . | . . . . . . Crush . | . . . . . . Escape Stasis . | . . . . . . Rewire 1 | . . 1 . . . Trap . | . . . . . . Miscellaneous . | . . . . . . Route ------- -11/Scrapyard -10/Materials -10/Mines (discovered 4 exits: [*Mat x2] / *Exi / [*Sub]) -10/Exiles -9/Mines -8/Materials History --------- Turn | Location | Event 23 | -11/Scrapyard | Discovered new exit (range 14) 99 | -11/Scrapyard | Entered Materials 317 | -10/Materials | Build established: Mutant 426 | -10/Materials | Discovered new exit (range 12) 558 | -10/Materials | Entered Mines 562 | -10/Mines | Joined a pair of Derelicts in attacking an 0b10 outpost 795 | -10/Mines | Discovered new exit (range 11) 966 | -10/Mines | Learned location of Storage (-8) 1014 | -10/Mines | Discovered new exit (range 13) 1124 | -10/Mines | Assisted by bots powering up and referring to "LRC-V3" 1146 | -10/Mines | YI-UF0 nonchalantly dropped a Grenade Launcher on the ground 1168 | -10/Mines | Found a damaged Exp. Sensor Array with a note attached 1172 | -10/Mines | Found Prototype Device 1206 | -10/Mines | Discovered new exit (range 5) 1316 | -10/Mines | Found a hidden stash of uninstalled traps 1346 | -10/Mines | Deemed a non-threat by the Exiles lab entrance 1346 | -10/Mines | Discovered new exit (range 5) 1362 | -10/Mines | Entered Exiles 1362 | -10/Exiles | Accompanied by 3 allies 1402 | -10/Exiles | Met 8R-AWN 1426 | -10/Exiles | Met EX-HEX 1479 | -10/Exiles | Met EX-BIN 1498 | -10/Exiles | Aligned with FarCom system 1500 | -10/Exiles | Given EX-Vault access code 1537 | -10/Exiles | Opened EX-Vault 1545 | -10/Exiles | Found Superbattery 1579 | -10/Exiles | Warned to stay clear of 0b10 Research branches 1674 | -10/Exiles | Met EX-DEC 1707 | -10/Exiles | Learned location of Zion (-7) 1778 | -10/Exiles | Discovered new exit (range 14) 1796 | -10/Exiles | Left Exiles lab with Superbattery 1796 | -10/Exiles | Entered Mines 1796 | -9/Mines | Accompanied by 3 allies 1900 | -9/Mines | Discovered new exit (range 8) 1912 | -9/Mines | Entered Materials 1912 | -8/Materials | Accompanied by 3 allies 1912 | -8/Materials | Evolved 4 slots: Propulsion x2, Utility x2 2251 | -8/Materials | Lost 3 allies 2280 | -8/Materials | Self-destructed Last Messages --------------- 02263_ Lgt. Treads destroyed. 02264_ U-05 Engineer lays Concrete. 02264_ U-05 Engineer builds a Wall. 02265_ G-47 Trooper destroyed. 02265_ U-05 Engineer lays Concrete. 02267_ K-01 Serf collects debris. 02267_ U-05 Engineer lays Concrete. 02271_ Lgt. Treads destroyed. 02271_ K-01 Serf collects debris. 02271_ U-05 Engineer lays Concrete. 02275_ K-01 Serf collects debris. 02275_ Lgt. Armor Plating destroyed. 02275_ U-05 Engineer lays Concrete. 02277_ Lgt. Nuclear Core melted. 02277_ G-47 Trooper destroyed. 02278_ K-01 Serf collects debris. 02278_ U-05 Engineer lays Concrete. 02279_ R-06 Scavenger collects Ion Engine. 02279_ U-05 Engineer lays Concrete. 02279_ G-47 Trooper unfolds itself. Map ----- +----------------------------------------------------+ | | | | | | | | | ?????????????????????????????????????????????????? | | ?????????????????????????????????????????????????? | | ?????????????????????????????????????????????????? | | ?????????????????????????????????????????????????? | | ?????????????????????????????????????????????????? | | ?????????????????????????????????????????????????? | | ?????????????????????????????????????????????????? | | ?????????????????????????????????????????????????? | | ?????????????????????????????????????????????????? | | ?????????????????????????????????????????????????? | | ?????????????????????????????????????????????????? | | ?????????????????????????????????????????????????? | | ?????????????????????##??????????????????????????? | | ????? ???? ??????? ?????????????????????????? | | ???? ?? g ????????? | | ???? ?? gC ????????? | | ????# #?### #####g############ ????????? | | ????# ### #### g # # ????????? | | ????# # # """ # """ # ????????? | | ????# # = # !!"G"%# """ # ????????? | | ????# u k ! ! %= # """ # ""????????? | | ????# [ !%!@=!# """ # ""????????? | | ????# # % """%*# """ + ""????????? | | ????# ! | """=]# # ????????? | | ????# % = = """ # """ # ????????? | | ????# # r %% # """ ######????????? | | ????# # =# # ## ### """ #?????????????? | | ???## ### % ## """ #?????????????? | | #### ## [% " # """ #?????????????? | | [ ** "" ## #?????????????? | | """"" "##########?????????????? | | ! """"" #??????????????????????? | | #### #### # """"" #??????????????????????? | | ???########?##### """ #??????????????????????? | | ????????????????# #??????????????????????? | | ????????????????###########??????????????????????? | | ?????????????????????????????????????????????????? | | ?????????????????????????????????????????????????? | | ?????????????????????????????????????????????????? | | ?????????????????????????????????????????????????? | | ?????????????????????????????????????????????????? | | ?????????????????????????????????????????????????? | | ?????????????????????????????????????????????????? | | ?????????????????????????????????????????????????? | | ?????????????????????????????????????????????????? | | ?????????????????????????????????????????????????? | +----------------------------------------------------+ Best States ------------- Heat Dissipation 31 Coolant Potential 65 Energy Generation 12 Energy Capacity 265 Matter Stores 338 Matter Capacity 500 Sight Range 16 Terrain Scan Density 10 Armor Coverage 450 Resistance: TH 10 Evasion (%) 40 Recoil Reduction 4 Item Schematics ----------------- None Robot Schematics ------------------ None Fabricated ------------ Nothing Repaired ---------- Nothing Alien Tech Used ----------------- None Achievements -------------- None Challenges ------------ None Game ------ Seed MasterMicrowarpTerminator Manual? 0 Play Time 00:13:35 Cumulative 413.8 hours Start 2025.05.26 @ 22:47:38 End 2025.05.26 @ 23:00:03 Sessions 1 Manual Loads 0 Difficulty Rogue Special Mode None Game No. 411 Rogue 406 Adventurer 5 Explorer 0 Win Type - Total 9 Types 6/0/0/3/0/0/0/0/0/0 Lore% 82 Gallery% 79 Achievement% 71 Wizard Run 0 Options --------- Layout 1 ASCII 0 Keyboard 0 Movement Arrows Keybinds 0 Fullscreen 1 Font 24/Terminus Map View 50x35 Zoom Use 0% Tactical HUD 1 Map Filters NONE Filters NONE Steam 1 RUN: 5ab6d496-c7fe-4e99-b200-f46269b356c7